bitfinex/quotes_BTCUSD_20251201
["timestamp","ask_amount","ask_price","bid_price","bid_amount"]
[1764602045526,0.33463629,85938.0,85933.0,0.01163697]
[1764602045763,0.323,85938.0,85934.0,0.01163683]
[1764602045972,0.23273572,85935.0,85930.0,0.01163737]
[1764602046147,0.323,85936.0,85932.0,0.23274206]
[1764602046368,0.01163697,85933.0,85932.0,0.02760315]
[1764602046649,0.2443777,85933.0,85930.0,0.2327472]
[1764602046988,0.0116371,85932.0,85929.0,0.01163751]
[1764602047189,0.0116371,85932.0,85924.0,0.03303]
[1764602047190,0.23275362,85928.0,85924.0,0.03303]
[1764602047395,0.23275362,85928.0,85924.0,0.27743097]
[1764602047835,0.01163697,85933.0,85924.0,0.27743097]
[1764602047836,0.01163629,85938.0,85929.0,0.23274937]
[1764602048034,0.01163697,85933.0,85929.0,0.24438688]
[1764602048235,0.0116371,85932.0,85929.0,0.27528278]
[1764602048545,0.2327467,85931.0,85929.0,0.04253397]
[1764602049001,0.23275571,85927.0,85926.0,0.00039136]
[1764602049421,0.66135571,85927.0,85926.0,0.00039136]
[1764602049672,0.59864571,85927.0,85926.0,0.00139136]
[1764602050236,0.59864571,85927.0,85926.0,0.00039136]
[1764602050438,0.55575571,85927.0,85926.0,0.00139136]
[1764602050592,0.55575571,85927.0,85926.0,0.00241867]
[1764602051402,0.66135571,85927.0,85926.0,0.00241867]
[1764602051691,0.77658167,85927.0,85926.0,0.00241867]
[1764602051888,0.77658167,85927.0,85926.0,0.00641867]
[1764602052346,0.66135571,85927.0,85926.0,0.00641867]
[1764602052563,2.6860043,85927.0,85926.0,0.00641867]
[1764602052694,2.75999943,85927.0,85926.0,0.00641867]
[1764602052906,2.84723913,85927.0,85926.0,0.00541867]
[1764602053271,2.83576699,85927.0,85926.0,0.00141867]
[1764602053457,2.83576699,85927.0,85920.0,0.0002]
[1764602053458,0.55577196,85921.0,85920.0,0.0002]
[1764602053660,2.66014542,85921.0,85920.0,0.00031754]
[1764602053860,2.72285542,85921.0,85920.0,0.00031754]
[1764602055443,2.78537841,85921.0,85920.0,0.00031754]
[1764602055665,2.78537841,85921.0,85884.0,0.23287142]
[1764602055666,0.01164266,85891.0,85884.0,0.23287142]
[1764602055899,0.01164266,85891.0,85888.0,0.23286055]
[1764602056031,0.24448656,85895.0,85890.0,0.01164279]
[1764602056385,0.2444908,85893.0,85890.0,0.01164279]
[1764602056588,0.24449386,85892.0,85888.0,0.01164307]
[1764602057059,0.23284848,85893.0,85891.0,0.03303]
[1764602057256,0.323,85895.0,85891.0,0.03303]
[1764602057582,0.323,85895.0,85891.0,0.08992001]
[1764602057788,0.24448785,85894.0,85891.0,0.08992001]
[1764602058001,0.2444769,85898.0,85892.0,0.24449132]
[1764602058150,0.323,85895.0,85891.0,0.08992001]
[1764602058353,0.56748555,85895.0,85891.0,0.08992001]
[1764602058556,0.23284785,85893.0,85891.0,0.08992001]
[1764602058759,0.23285055,85892.0,85877.0,0.01164456]
[1764602058953,0.23285613,85890.0,85885.0,0.01164347]
[1764602059179,0.23285868,85889.0,85888.0,0.001]
[1764602059410,0.56489868,85889.0,85888.0,0.001]
[1764602059563,2.60778868,85889.0,85888.0,0.0012207]
[1764602059764,2.67049868,85889.0,85888.0,0.0012207]
[1764602059985,2.78572464,85889.0,85888.0,0.0012207]
[1764602061728,2.78572464,85889.0,85888.0,0.0072207]
[1764602061907,2.78572464,85889.0,85888.0,0.0082207]
[1764602062326,2.67049868,85889.0,85888.0,0.0082207]
[1764602063099,2.67049868,85889.0,85888.0,0.0072207]
[1764602063718,2.69508349,85889.0,85888.0,0.0072207]
[1764602063896,2.75760648,85889.0,85888.0,0.0072207]
[1764602064303,2.76504648,85889.0,85888.0,0.0012207]
[1764602064525,2.88027244,85889.0,85888.0,0.0012207]
[1764602064736,2.88027244,85889.0,85888.0,0.0022207]
[1764602064943,2.88027244,85889.0,85888.0,0.0012207]
[1764602065144,2.91121335,85889.0,85888.0,0.0012207]
[1764602065753,2.88027244,85889.0,85888.0,0.0012207]
[1764602066081,2.88127244,85889.0,85888.0,0.0012207]
[1764602067262,2.92252888,85889.0,85888.0,0.0012207]
[1764602067669,2.88127244,85889.0,85888.0,0.0012207]
[1764602067884,2.87383244,85889.0,85888.0,0.0012207]
[1764602068091,2.88127244,85889.0,85888.0,0.0012207]
[1764602068277,2.92252888,85889.0,85888.0,0.0012207]
[1764602068687,2.91508888,85889.0,85888.0,0.0012207]
[1764602068914,2.92252888,85889.0,85888.0,0.0012207]
[1764602069212,2.88127244,85889.0,85888.0,0.0012207]
[1764602069640,2.92228653,85889.0,85888.0,0.0012207]
[1764602070000,2.88127244,85889.0,85888.0,0.0012207]
[1764602070197,2.9222805,85889.0,85888.0,0.0012207]
[1764602070650,2.88127244,85889.0,85888.0,0.0012207]
[1764602071205,0.92226713,85889.0,85888.0,0.0012207]
[1764602071410,2.91484392,85889.0,85888.0,0.0012207]
[1764602071611,2.59202019,85889.0,85888.0,0.0012207]
[1764602073248,2.62278066,85889.0,85888.0,0.0012207]
[1764602075058,2.61534066,85889.0,85888.0,0.0012207]
[1764602075275,2.62283243,85889.0,85888.0,0.0012207]
[1764602075470,2.73805839,85889.0,85888.0,0.0012207]
[1764602076084,2.70724615,85889.0,85888.0,0.0012207]
[1764602076761,2.59202019,85889.0,85888.0,0.0012207]
[1764602078814,0.23294719,85857.0,85854.0,0.22330303]
[1764602078978,0.23294719,85857.0,85854.0,0.22342071]
[1764602079181,0.23294942,85856.0,85854.0,0.00011768]
[1764602079384,0.5559509,85855.0,85854.0,0.00011768]
[1764602079632,0.6600809,85855.0,85854.0,0.00011768]
[1764602079818,0.68478434,85855.0,85854.0,0.00011768]
[1764602080437,0.68478434,85855.0,85854.0,0.00711768]
[1764602080657,0.62266434,85855.0,85854.0,0.00011768]
[1764602080860,2.68478434,85855.0,85854.0,0.00111768]
[1764602081034,2.68478434,85855.0,85854.0,0.00611768]
[1764602081242,2.68478434,85855.0,85854.0,0.00511768]
[1764602081647,2.71564624,85855.0,85854.0,0.00511768]
[1764602081907,2.68478434,85855.0,85854.0,0.00511768]
[1764602082347,2.63010434,85855.0,85854.0,0.00511768]
[1764602083090,2.69222434,85855.0,85854.0,0.00511768]
[1764602083317,2.73337355,85855.0,85854.0,0.00511768]
[1764602083474,2.84859951,85855.0,85854.0,0.00511768]
[1764602083669,2.8074503,85855.0,85854.0,0.00511768]
[1764602084082,2.69222434,85855.0,85854.0,0.00511768]
[1764602084286,2.67134056,85855.0,85854.0,0.00511768]
[1764602084624,2.63010434,85855.0,85854.0,0.00511768]
[1764602084770,2.63010434,85855.0,85854.0,0.00011768]
[1764602084972,2.63010434,85855.0,85854.0,0.00311768]
[1764602085175,2.67134056,85855.0,85854.0,0.00311768]
[1764602086017,2.62933056,85855.0,85854.0,0.00311768]
[1764602086213,2.63010434,85855.0,85854.0,0.00311768]
[1764602086422,0.58809434,85855.0,85854.0,0.00311768]
[1764602086597,2.58809434,85855.0,85854.0,0.00311768]
[1764602087045,2.58065434,85855.0,85854.0,0.00311768]
[1764602087198,2.34770344,85855.0,85854.0,0.00311768]
[1764602087428,0.28860725,85855.0,85854.0,0.11265768]
[1764602087671,0.26390381,85855.0,85854.0,0.04713768]
[1764602087818,0.61160725,85855.0,85854.0,0.00311768]
[1764602088019,0.58065434,85855.0,85854.0,0.00311768]
[1764602088756,0.61160725,85855.0,85854.0,0.04713768]
[1764602088959,0.58065434,85855.0,85854.0,0.11265768]
[1764602089159,0.58065434,85855.0,85854.0,0.04713768]
[1764602089310,0.4081829,85855.0,85854.0,0.04713768]
[1764602089722,0.4081829,85855.0,85854.0,0.04823056]
[1764602089919,0.4081829,85855.0,85854.0,0.11375056]
[1764602090154,0.4081829,85855.0,85854.0,0.04823056]
[1764602090531,0.4081829,85855.0,85854.0,0.00421056]
[1764602092044,0.4081829,85855.0,85846.0,0.01164876]
[1764602092045,0.4081829,85855.0,85800.0,0.01019999]
[1764602092046,0.0144,85849.0,85800.0,0.01019999]
[1764602092255,0.01164795,85852.0,85770.0,0.00999999]
[1764602092256,0.01165718,85784.0,85770.0,0.00999999]
[1764602092456,0.01165718,85784.0,85768.0,0.03503522]
[1764602092457,0.01165813,85777.0,85768.0,0.03503522]
[1764602092655,0.01165813,85777.0,85763.0,0.0001]
[1764602092656,0.01165813,85777.0,85769.0,0.06552]
[1764602092657,0.0116584,85775.0,85769.0,0.06552]
[1764602092944,0.01165963,85766.0,85763.0,0.0001]
[1764602093127,0.02478438,85765.0,85763.0,0.0001]
[1764602093339,0.34778438,85764.0,85763.0,0.0001]
[1764602093560,0.01166167,85751.0,85748.0,0.03196591]
[1764602093717,0.25802309,85750.0,85748.0,0.03196591]
[1764602093922,0.34778438,85749.0,85748.0,0.03196591]
[1764602094876,0.58141367,85749.0,85748.0,0.001]
[1764602095236,0.01166275,85743.0,85728.0,0.03174]
[1764602095445,0.23327967,85734.0,85728.0,0.03174]
[1764602095644,0.23329073,85730.0,85728.0,0.03174]
[1764602095857,0.02478438,85729.0,85728.0,0.03174]
[1764602096065,0.02478438,85729.0,85712.0,0.03174]
[1764602096292,0.23328213,85734.0,85713.0,0.038127]
[1764602096293,0.0671926,85728.0,85713.0,0.038127]
[1764602096471,0.0555278,85727.0,85713.0,0.03174]
[1764602096666,0.03074342,85724.0,85713.0,0.03174]
[1764602096870,0.02478438,85726.0,85713.0,0.03174]
[1764602096871,0.02478438,85723.0,85714.0,0.0116667]
[1764602097183,0.323,85730.0,85713.0,0.26507591]
[1764602097184,0.02478438,85729.0,85725.0,0.03174]
[1764602097400,0.02478438,85729.0,85726.0,0.01131607]
[1764602097550,0.02478438,85729.0,85728.0,0.04356]
[1764602097753,0.02478438,85739.0,85728.0,0.04356]
[1764602097951,0.00039018,85739.0,85729.0,0.07664466]
[1764602098161,0.00039018,85739.0,85726.0,0.01131607]
[1764602098162,0.23326879,85738.0,85726.0,0.01131607]
[1764602098374,0.00039018,85739.0,85738.0,0.04356]
[1764602098601,0.00039018,85739.0,85727.0,0.09378305]
[1764602098602,0.23326879,85738.0,85728.0,0.06498]
[1764602098811,0.00039018,85739.0,85738.0,0.04356]
[1764602099006,0.00039018,85739.0,85724.0,0.04340534]
[1764602099007,0.01166398,85734.0,85724.0,0.03174]
[1764602099212,0.23330407,85726.0,85724.0,0.03174]
[1764602099647,0.24495794,85729.0,85725.0,0.10854]
[1764602099849,0.23329872,85727.0,85726.0,0.04356]
[1764602100055,0.06345,85726.0,85713.0,0.03174]
[1764602100254,0.06715,85728.0,85713.0,0.03174]
[1764602100255,0.323,85728.0,85724.0,0.007]
[1764602100513,0.01166493,85727.0,85717.0,0.01166629]
[1764602100719,0.323,85728.0,85722.0,0.01166561]
[1764602100948,0.08625895,85747.0,85717.0,0.05825359]
[1764602100949,0.00748,85744.0,85736.0,0.01166371]
[1764602101155,0.08939,85759.0,85738.0,0.04356]
[1764602101156,0.00748,85756.0,85738.0,0.04356]
[1764602101374,0.0116618,85750.0,85738.0,0.04356]
[1764602101579,0.01166235,85746.0,85738.0,0.10854]
[1764602101789,0.23324068,85749.0,85738.0,0.10854]
[1764602101989,0.50748,85756.0,85738.0,0.10854]
[1764602102240,0.01166126,85754.0,85738.0,0.10854]
[1764602102460,0.01166262,85744.0,85738.0,0.10854]
[1764602102665,0.01166275,85743.0,85738.0,0.10854]
[1764602102878,0.01166275,85743.0,85738.0,0.11354]
[1764602103091,0.01166207,85748.0,85738.0,0.34680879]
[1764602103291,0.01166207,85748.0,85738.0,0.10854]
[1764602103560,0.01166207,85748.0,85746.0,0.03174]
[1764602103779,0.02442396,85749.0,85747.0,0.04356]
[1764602103999,0.02442396,85749.0,85748.0,0.04356]
[1764602104155,0.23322809,85753.0,85748.0,0.14940366]
[1764602104353,0.323,85755.0,85748.0,0.14940366]
[1764602104354,0.323,85752.0,85749.0,0.01166194]
[1764602104554,0.02442396,85751.0,85748.0,0.06498]
[1764602104756,0.02442396,85751.0,85749.0,0.06498]
[1764602104955,0.29466159,85772.0,85749.0,0.06498]
[1764602104956,0.03074342,85766.0,85757.0,0.24487539]
[1764602105190,0.01165908,85770.0,85751.0,0.01166167]
[1764602105191,0.24485797,85764.0,85759.0,0.0288]
[1764602105346,0.23320864,85761.0,85759.0,0.09378]
[1764602105543,0.01166017,85762.0,85746.0,0.00011766]
[1764602105544,0.24490081,85749.0,85746.0,0.00011766]
[1764602105785,0.23324387,85748.0,85746.0,0.00011766]
[1764602106221,0.23324387,85748.0,85747.0,0.10854]
[1764602106404,0.03609659,85749.0,85747.0,0.12030207]
[1764602106405,0.02443465,85749.0,85747.0,0.12030207]
[1764602106734,0.23324099,85749.0,85748.0,0.001]
[1764602106937,0.02443465,85749.0,85748.0,0.001]
[1764602107105,0.26933495,85750.0,85748.0,0.001]
[1764602107304,0.33466194,85749.0,85746.0,0.00611766]
[1764602107506,0.323,85757.0,85746.0,0.00611766]
[1764602107507,0.03053437,85760.0,85756.0,0.01166099]
[1764602107709,0.323,85761.0,85759.0,0.04356]
[1764602107914,0.01165963,85766.0,85759.0,0.04356]
[1764602107915,0.0244365,85760.0,85759.0,0.23320951]
[1764602108265,0.01165908,85770.0,85762.0,0.01166017]
[1764602108434,0.01165908,85770.0,85760.0,0.06498]
[1764602108435,0.01165949,85767.0,85764.0,0.04356]
[1764602108612,0.323,85766.0,85764.0,0.04356]
[1764602108824,0.323,85766.0,85757.0,0.23321687]
[1764602108825,0.01166003,85763.0,85754.0,0.07664126]
[1764602108986,0.0244365,85765.0,85761.0,0.01166031]
[1764602108987,0.03609626,85765.0,85761.0,0.01166031]
[1764602109197,0.0244365,85766.0,85764.0,0.04356]
[1764602109547,0.0244365,85766.0,85764.0,0.23319596]
[1764602109696,0.24482718,85775.0,85763.0,0.24485808]
[1764602109697,0.03053437,85775.0,85772.0,0.01165881]
[1764602109895,0.01165732,85783.0,85772.0,0.01165881]
[1764602109896,0.5,85785.0,85780.0,0.01165772]
[1764602109897,0.02444494,85784.0,85780.0,0.01165772]
[1764602110116,0.04098878,85791.0,85780.0,0.01165772]
[1764602110117,0.02444494,85787.0,85786.0,0.01165691]
[1764602110331,0.04098878,85799.0,85782.0,0.01165745]
[1764602110332,0.24476772,85796.0,85783.0,0.01165732]
[1764602110533,0.01165596,85793.0,85786.0,0.30843673]
[1764602110742,0.01165569,85795.0,85789.0,0.0116565]
[1764602110951,0.23313386,85788.0,85786.0,0.00011766]
[1764602111374,0.2575788,85788.0,85786.0,0.00011766]
[1764602111579,0.23314914,85782.0,85774.0,0.24482908]
[1764602111787,0.01165772,85780.0,85774.0,0.01177607]
[1764602111992,0.01165772,85780.0,85774.0,0.06509753]
[1764602111993,0.24482134,85777.0,85774.0,0.06509753]
[1764602112230,0.24482134,85777.0,85775.0,0.01486954]
[1764602112437,0.02447904,85778.0,85776.0,0.04356]
[1764602112692,0.23315915,85779.0,85777.0,0.10854]
[1764602112997,0.25763819,85779.0,85777.0,0.04356]
[1764602113790,0.02447904,85779.0,85778.0,0.10854]
[1764602114010,0.33465745,85782.0,85778.0,0.18569464]
[1764602114185,0.02447904,85781.0,85778.0,0.35387284]
[1764602114386,0.02447904,85781.0,85779.0,0.36789123]
[1764602114656,0.02447904,85790.0,85785.0,0.24479609]
[1764602114830,0.02447904,85789.0,85787.0,0.01165677]
[1764602115039,0.04219019,85794.0,85788.0,0.34823746]
[1764602115040,0.02447904,85790.0,85788.0,0.34823746]
[1764602115255,0.02447904,85790.0,85778.0,0.06549664]
[1764602115256,0.23315458,85780.0,85778.0,0.06549664]
[1764602115461,0.01165759,85781.0,85764.0,0.24485679]
[1764602115462,0.02447904,85779.0,85777.0,0.23316068]
[1764602115653,0.02447904,85780.0,85778.0,0.06975487]
[1764602115896,0.02447904,85790.0,85789.0,0.23313012]
[1764602116106,0.02447904,85797.0,85794.0,0.01165582]
[1764602116228,0.23310338,85799.0,85797.0,0.03145898]
[1764602116424,0.25762397,85799.0,85797.0,0.03145898]
[1764602116794,0.02452059,85799.0,85798.0,0.04356]
[1764602117142,0.02452059,85799.0,85789.0,0.05012338]
[1764602117143,0.23312468,85791.0,85789.0,0.05012338]
[1764602117377,0.23313012,85789.0,85788.0,0.03174]
[1764602117528,0.24478177,85791.0,85788.0,0.09672]
[1764602117731,0.23312852,85790.0,85788.0,0.09672]
[1764602117951,0.24478177,85791.0,85778.0,0.001]
[1764602117952,0.23315729,85779.0,85778.0,0.001]
[1764602118152,0.23315494,85780.0,85778.0,0.001]
[1764602118383,0.23316817,85775.0,85774.0,0.00011753]
[1764602118531,0.23316587,85776.0,85774.0,0.00615728]
[1764602118727,0.23316817,85775.0,85774.0,0.00615728]
[1764602119361,0.02455605,85776.0,85774.0,0.00615728]
[1764602119559,0.02455605,85779.0,85776.0,0.01165827]
[1764602119825,0.01165772,85780.0,85777.0,0.02495681]
[1764602120025,0.01165772,85780.0,85774.0,0.00211753]
[1764602120026,0.02455605,85779.0,85774.0,0.00211753]
[1764602120270,0.02455605,85778.0,85774.0,0.23528781]
[1764602120474,0.323,85782.0,85776.0,0.23316425]
[1764602120475,0.02455605,85777.0,85776.0,0.23316425]
[1764602120677,0.0116565,85789.0,85775.0,0.37955835]
[1764602120678,0.02455605,85781.0,85779.0,0.23315566]
[1764602120907,0.02464218,85780.0,85777.0,0.24482047]
[1764602121122,0.02464218,85779.0,85778.0,0.34286733]
[1764602121498,0.02464218,85779.0,85778.0,0.38642733]
[1764602121672,0.02464218,85779.0,85778.0,0.15326986]
[1764602121876,0.011658,85778.0,85774.0,0.00111753]
[1764602122078,0.02464218,85777.0,85775.0,0.36790283]
[1764602122293,0.23316817,85775.0,85774.0,0.00111753]
[1764602122465,0.25781035,85775.0,85774.0,0.00011753]
[1764602122665,0.25781035,85775.0,85774.0,0.05088321]
[1764602122866,0.25781035,85775.0,85774.0,0.04567753]
[1764602123691,0.31929448,85775.0,85774.0,0.04667753]
[1764602123888,0.31929448,85775.0,85774.0,0.00311753]
[1764602123889,0.64229448,85775.0,85774.0,0.00311753]
[1764602124091,0.58081035,85775.0,85774.0,0.00311753]
[1764602124291,0.34764218,85775.0,85774.0,0.12516753]
[1764602124627,0.02464218,85775.0,85774.0,0.42283672]
[1764602124970,0.02464218,85775.0,85774.0,0.42083672]
[1764602125364,0.02464218,85775.0,85774.0,0.19066583]
[1764602125744,0.02464218,85775.0,85774.0,0.42383672]
[1764602125944,0.06582039,85775.0,85774.0,0.42383672]
[1764602126149,0.02464218,85775.0,85774.0,0.42383672]
[1764602127225,0.05552706,85775.0,85774.0,0.42383672]
[1764602127417,0.05552706,85775.0,85774.0,0.12616753]
[1764602127418,0.23316817,85775.0,85774.0,0.12616753]
[1764602127580,0.011658,85778.0,85774.0,0.1287419]
[1764602127780,0.24481822,85778.0,85777.0,0.08614]
[1764602127983,0.26954263,85778.0,85777.0,0.08614]
[1764602128185,0.26954263,85778.0,85777.0,0.15621]
[1764602128722,0.02472441,85778.0,85777.0,0.22237467]
[1764602128933,0.24481489,85780.0,85777.0,0.22437467]
[1764602129127,0.24481489,85780.0,85779.0,0.04667]
[1764602129325,0.2695393,85780.0,85779.0,0.04667]
[1764602129545,0.23316001,85778.0,85777.0,0.10530467]
[1764602129748,0.25788442,85778.0,85777.0,0.04014]
[1764602130106,0.02472441,85778.0,85777.0,0.08381]
[1764602130304,0.24481489,85780.0,85777.0,0.15388]
[1764602130305,0.23315781,85779.0,85777.0,0.15388]
[1764602130531,0.25788222,85779.0,85777.0,0.10721]
[1764602130864,0.25788222,85779.0,85778.0,0.11674]
[1764602131078,0.02472441,85779.0,85778.0,0.18343634]
[1764602131244,0.23316001,85778.0,85777.0,0.03714]
[1764602131551,0.02472441,85778.0,85777.0,0.15388]
[1764602131785,0.25788442,85778.0,85777.0,0.08381]
[1764602132075,0.25788442,85778.0,85777.0,0.08681]
[1764602133045,0.25788442,85778.0,85777.0,0.08928774]
[1764602133249,0.23315749,85779.0,85777.0,0.08928774]
[1764602133587,0.23315749,85779.0,85777.0,0.08681]
[1764602133719,0.23315749,85779.0,85778.0,0.00244554]
[1764602133942,0.55615749,85779.0,85778.0,0.00244554]
[1764602134455,0.58932749,85779.0,85778.0,0.00244554]
[1764602135470,0.58932749,85779.0,85778.0,0.00444554]
[1764602135639,0.55615749,85779.0,85778.0,0.00444554]
[1764602135844,0.323,85779.0,85778.0,0.00444554]
[1764602136043,0.55615729,85779.0,85778.0,0.00444554]
[1764602136243,0.55615729,85779.0,85778.0,0.00544554]
[1764602136655,0.65786729,85779.0,85778.0,0.00544554]
[1764602136861,2.65786729,85779.0,85778.0,0.00544554]
[1764602137057,2.69512039,85779.0,85778.0,0.00544554]
[1764602137260,2.65786729,85779.0,85778.0,0.00544554]
[1764602137641,2.65786729,85779.0,85778.0,0.00344554]
[1764602137642,2.77913568,85779.0,85778.0,0.00344554]
[1764602138066,2.77913568,85779.0,85774.0,0.00011753]
[1764602138067,0.55616817,85775.0,85774.0,0.00011753]
[1764602138279,2.83327252,85775.0,85774.0,0.00011753]
[1764602138492,2.88444036,85775.0,85774.0,0.00011753]
[1764602139095,2.94318576,85775.0,85774.0,0.00011753]
[1764602139319,2.94415974,85775.0,85774.0,0.00011753]
[1764602139726,2.90281252,85775.0,85774.0,0.00011753]
[1764602140675,2.66631817,85775.0,85774.0,0.00011753]
[1764602140892,2.72884116,85775.0,85774.0,0.00011753]
[1764602141102,2.72884116,85775.0,85729.0,0.03338]
[1764602141103,0.01166398,85734.0,85729.0,0.03338]
[1764602141293,0.01166412,85733.0,85729.0,0.03338]
[1764602141499,0.23328655,85732.0,85730.0,0.08855698]
[1764602141818,0.01166412,85733.0,85732.0,0.04667]
[1764602142021,0.24506091,85734.0,85732.0,0.04667]
[1764602142022,0.00011703,85734.0,85732.0,0.04667]
[1764602142226,0.00011703,85734.0,85733.0,0.11674]
[1764602142421,0.00011703,85734.0,85733.0,0.04667]
[1764602142621,0.00011703,85734.0,85733.0,0.09339169]
[1764602142935,0.00011703,85734.0,85733.0,0.11674]
[1764602143134,0.00011703,85734.0,85732.0,0.001]
[1764602143135,0.5562824,85733.0,85732.0,0.001]
[1764602143599,0.6012924,85733.0,85732.0,0.001]
[1764602143938,0.01166452,85730.0,85723.0,0.01166548]
[1764602144160,0.23330806,85724.0,85722.0,0.10345]
[1764602144343,0.23330961,85723.0,85722.0,0.10345]
[1764602144563,0.23328844,85731.0,85722.0,0.03338]
[1764602146971,0.23330961,85723.0,85722.0,0.00180395]
[1764602147324,0.67020961,85723.0,85722.0,0.00280395]
[1764602147717,0.60131961,85723.0,85722.0,0.00880395]
[1764602147894,0.60131961,85723.0,85722.0,0.00280395]
[1764602148094,0.60131961,85723.0,85722.0,0.00880395]
[1764602148297,0.60131961,85723.0,85722.0,0.00780395]
[1764602148506,0.2333695,85701.0,85680.0,0.0002]
[1764602148732,0.2333695,85701.0,85681.0,0.03338]
[1764602148733,0.6013795,85701.0,85681.0,0.03338]
[1764602148932,0.37545,85701.0,85681.0,0.04505119]
[1764602149137,0.33044,85701.0,85686.0,0.07007]
[1764602149467,0.33044,85701.0,85681.0,0.04505119]
[1764602149468,0.44434,85701.0,85681.0,0.03338]
[1764602149607,0.44445697,85701.0,85683.0,0.01167092]
[1764602149783,0.44445697,85701.0,85681.0,0.03338]
[1764602150249,0.64876374,85701.0,85680.0,0.0002]
[1764602150420,0.53353778,85701.0,85682.0,0.03338]
[1764602150601,0.44445697,85701.0,85682.0,0.03338]
[1764602151235,0.32311697,85701.0,85688.0,0.08174024]
[1764602151474,0.32311697,85701.0,85700.0,0.01450069]
[1764602151475,0.55648647,85701.0,85700.0,0.01450069]
[1764602151670,0.32311697,85701.0,85700.0,0.01250069]
[1764602151877,0.33055697,85701.0,85700.0,0.01250069]
[1764602151995,0.32411697,85701.0,85700.0,0.01250069]
[1764602152199,0.33055697,85701.0,85700.0,0.01250069]
[1764602152688,0.32311697,85701.0,85700.0,0.01250069]
[1764602153019,0.54241553,85701.0,85700.0,0.01250069]
[1764602153426,0.54241553,85701.0,85700.0,0.01450069]
[1764602153628,0.54241553,85701.0,85700.0,0.01250069]
[1764602153822,0.43701697,85701.0,85700.0,0.01250069]
[1764602154456,0.43701697,85701.0,85700.0,0.0152098]
[1764602155192,2.43701697,85701.0,85700.0,0.0152098]
[1764602155454,2.43801697,85701.0,85700.0,0.0152098]
[1764602156192,2.43801697,85701.0,85680.0,0.0002]
[1764602156193,0.01167092,85683.0,85680.0,0.0002]
[1764602156387,2.02041,85661.0,85660.0,10.94398073]
[1764602156588,2.58436847,85661.0,85660.0,10.87895073]
[1764602156794,2.62162157,85661.0,85660.0,10.87895073]
[1764602157150,2.67019718,85661.0,85660.0,10.72647167]
[1764602157358,2.66271718,85661.0,85660.0,10.72647167]
[1764602157562,2.64990406,85661.0,85660.0,10.72647167]
[1764602157763,2.56407535,85661.0,85660.0,10.72647167]
[1764602157968,2.3301014,85661.0,85660.0,10.72647167]
[1764602158167,2.23759535,85661.0,85660.0,10.72647167]
[1764602158370,2.24207535,85661.0,85660.0,10.72647167]
[1764602158571,0.22732187,85661.0,85660.0,10.72647167]
[1764602158751,0.08828584,85661.0,85660.0,10.6913835]
[1764602158975,0.08728584,85661.0,85660.0,10.65629533]
[1764602159318,2.08728584,85661.0,85660.0,10.65629533]
[1764602159519,2.08728584,85661.0,85660.0,10.60293716]
[1764602159719,2.15728883,85661.0,85660.0,10.47239144]
[1764602159921,2.51395177,85661.0,85660.0,9.67076314]
[1764602160133,2.53835907,85661.0,85660.0,9.39995573]
[1764602160338,2.62954671,85661.0,85660.0,9.076341]
[1764602160559,2.62954671,85661.0,85660.0,8.84046908]
[1764602160747,2.64038093,85661.0,85660.0,8.68115973]
[1764602160961,2.64786093,85661.0,85660.0,8.63988263]
[1764602161176,2.64786093,85661.0,85660.0,8.04603374]
[1764602161177,2.54147527,85661.0,85660.0,8.04603374]
[1764602161402,2.50260305,85661.0,85660.0,8.01093699]
[1764602161609,2.49860305,85661.0,85660.0,7.97584024]
[1764602161827,2.49860305,85661.0,85660.0,7.41227529]
[1764602162039,2.52195992,85661.0,85660.0,7.29881305]
[1764602162240,2.48752071,85661.0,85660.0,7.26500637]
[1764602162456,2.5520437,85661.0,85660.0,7.22990962]
[1764602162664,2.5570437,85661.0,85660.0,7.19481287]
[1764602162871,2.4550473,85661.0,85660.0,7.15971612]
[1764602163106,2.42276584,85661.0,85660.0,7.15971612]
[1764602163311,2.42476584,85661.0,85660.0,7.15971612]
[1764602163516,2.32476584,85661.0,85660.0,7.15971612]
[1764602163723,2.40148805,85661.0,85660.0,7.15971612]
[1764602164131,2.40748805,85661.0,85660.0,7.15971612]
[1764602164347,2.43376951,85661.0,85660.0,7.15971612]
[1764602164555,2.42989766,85661.0,85660.0,6.54882095]
[1764602164764,2.40548805,85661.0,85660.0,6.51373319]
[1764602164976,2.31476584,85661.0,85660.0,6.51373319]
[1764602165193,2.31676584,85661.0,85660.0,6.51373319]
[1764602165396,2.31476584,85661.0,85660.0,6.51373319]
[1764602165812,2.31676584,85661.0,85660.0,6.51373319]
[1764602166168,2.31476584,85661.0,85660.0,6.51373319]
[1764602166600,2.31376584,85661.0,85660.0,6.51373319]
[1764602166975,2.31876584,85661.0,85660.0,6.51373319]
[1764602167175,2.31376584,85661.0,85660.0,6.51373319]
[1764602167605,2.31576584,85661.0,85660.0,6.51373319]
[1764602167848,2.31276584,85661.0,85660.0,6.51373319]
[1764602167977,2.1619221,85661.0,85660.0,6.51373319]
[1764602168180,2.13064064,85661.0,85660.0,6.51373319]
[1764602168738,0.33148,85661.0,85660.0,6.51373319]
[1764602168941,2.33148,85661.0,85660.0,6.42673319]
[1764602169146,2.33248,85661.0,85660.0,6.42673319]
[1764602169661,2.001,85661.0,85660.0,6.54195915]
[1764602169864,2.001,85661.0,85660.0,6.53471319]
[1764602170072,2.002,85661.0,85660.0,6.42673319]
[1764602170357,0.001,85661.0,85660.0,6.53471319]
[1764602170553,0.002,85661.0,85660.0,6.64993915]
[1764602170766,0.02582119,85681.0,85666.0,0.01167324]
[1764602170975,2.0,85680.0,85666.0,0.24552587]
[1764602171179,2.0,85682.0,85680.0,0.03098]
[1764602171587,0.5973953,85690.0,85666.0,0.00039018]
[1764602171588,0.01167242,85672.0,85666.0,0.00039018]
[1764602171796,0.01167242,85672.0,85667.0,0.03098]
[1764602171797,0.23345963,85668.0,85667.0,0.03098]
[1764602172201,0.06111933,85668.0,85667.0,0.03098]
[1764602172410,0.06111933,85668.0,85666.0,0.00039018]
[1764602172617,2.06111933,85668.0,85666.0,0.00039018]
[1764602172826,2.5973953,85680.0,85667.0,0.04189]
[1764602173051,2.0,85681.0,85673.0,0.03098]
[1764602173297,2.0,85681.0,85676.0,0.01167188]
[1764602173547,0.01166874,85699.0,85681.0,0.04189]
[1764602173767,0.2333791,85698.0,85681.0,0.04189]
[1764602174001,2.0,85697.0,85682.0,0.06609]
[1764602174179,2.0,85694.0,85683.0,0.01167092]
[1764602174433,2.0,85699.0,85688.0,0.01167024]
[1764602174641,0.5973953,85700.0,85688.0,0.01167024]
[1764602174642,2.0,85702.0,85698.0,0.04189]
[1764602174845,2.0,85704.0,85699.0,0.04189]
[1764602175049,0.2450276,85705.0,85699.0,0.04189]
[1764602175050,2.0,85701.0,85699.0,0.04189]
[1764602175263,0.01166656,85715.0,85700.0,0.01166861]